[Event "Balkan Youth Online-ch 2020"]
[Site "Online"]
[Date "2020.10.31"]
[Round "3.70"]
[White "Zhezhovska, Monika"]
[Black "Davitkova, Jovana"]
[Result "0-1"]
[ECO "B82"]
[WhiteElo "1108"]
[BlackElo "1227"]
[Annotator "NA RC"]
[PlyCount "130"]
[EventDate "2020.10.31"]
[EventType "swiss"]
[SourceTitle "playchess.com"]
[Source "ChessBase"]
[SourceQuality "1"]
[TimeControl "5400+30"]

1. e4 {[%emt 1:05:20]} c5 {[%emt 1:05:27]} 2. Nf3 {[%emt 0:00:26]} d6 {[%emt 0:00:25]} 3. d4 {[%emt 0:00:25]} cxd4 {[%emt 0:00:25]} 4. Nxd4 {[%emt 0:00:22]} Nf6 {[%emt 0:00:24]} 5. Nc3 {[%emt 0:00:23]} a6 {[%emt 0:00:27]} 6. f4 {[%emt 0:00:27]} e6 {[%emt 0:00:39]} 7. Be3 {[%emt 0:00:29]} d5 {[%emt 0:00:32]} 8. exd5 {[%emt 0:00:34]} Nxd5 {[%emt 0:00:34]} 9. Nxd5 {[%emt 0:00:24]} Qxd5 {[%emt 0:00:25]} 10. Qd2 {[%emt 0:00:38]} Bc5 {[%emt 0:01:18]} 11. a3 {[%emt 0:00:50]} Nc6 {[%emt 0:01:07]} 12. Nxc6 {[%emt 0:00:33]} Qxc6 {[%emt 0:00:48]} 13. Bxc5 {[%emt 0:00:36]} Qxc5 {[%emt 0:00:44]} 14. Bd3 {[%emt 0:00:24]} O-O {[%emt 0:00:47]} 15. O-O-O {[%emt 0:00:25]} b5 {[%emt 0:00:46]} 16. g4 {[%emt 0:00:26]} Rb8 {[%emt 0:01:10]} 17. h4 {[%emt 0:01:07]} b4 {[%emt 0:00:47]} 18. axb4 {[%emt 0:00:26]} Qxb4 {[%emt 0:00:29]} 19. Qxb4 {[%emt 0:00:22]} Rxb4 {[%emt 0:00:27]} 20. Rdf1 {[%emt 0:00:49]} f6 {[%emt 0:01:15]} 21. c3 {[%emt 0:00:26]} Rb6 {[%emt 0:01:22]} 22. Kc2 {[%emt 0:01:07]} Bb7 {[%emt 0:00:59]} 23. Rhg1 {[%emt 0:00:41]} Rd6 {[%emt 0:00:42]} 24. f5 {[%emt 0:00:39]} e5 {[%emt 0:01:12]} 25. Bc4+ {[%emt 0:00:28]} Bd5 {[%emt 0:01:06]} 26. Bxd5+ {[%emt 0:00:27]} Rxd5 {[%emt 0:00:22]} 27. Rd1 {[%emt 0:00:23]} Rfd8 {[%emt 0:00:28]} 28. Rxd5 {[%emt 0:00:23]} Rxd5 {[%emt 0:00:23]} 29. Rd1 {[%emt 0:00:29]} Rxd1 {[%emt 0:01:30]} 30. Kxd1 {[%emt 0:00:23]} Kf7 {[%emt 0:00:23]} 31. Ke2 {[%emt 0:00:30]} Ke7 {[%emt 0:00:23]} 32. Ke3 {[%emt 0:00:22]} Kd6 {[%emt 0:00:23]} 33. Ke4 {[%emt 0:00:25]} Kc5 {[%emt 0:00:26]} 34. g5 {[%emt 0:00:22]} Kc4 {[%emt 0:00:46]} 35. g6 {[%emt 0:00:52]} h6 {[%emt 0:00:26]} 36. h5 {[%emt 0:00:22]} a5 {[%emt 0:00:22]} 37. b4 {[%emt 0:00:30]} axb4 {[%emt 0:00:28]} 38. cxb4 {[%emt 0:00:22]} Kxb4 {[%emt 0:00:22]} 39. Kd5 {[%emt 0:00:21]} e4 {[%emt 0:01:46]} 40. Kxe4 {[%emt 0:00:25]} Kc4 {[%emt 0:00:22]} 41. Kf3 {[%emt 0:00:53]} Kd3 {[%emt 0:00:30]} 42. Kf4 {[%emt 0:00:37]} Kd4 {[%emt 0:00:24]} 43. Kg4 {[%emt 0:00:22]} Ke4 {[%emt 0:00:27]} 44. Kg3 {[%emt 0:00:22]} Kxf5 {[%emt 0:00:22]} 45. Kf3 {[%emt 0:00:22]} Kg5 {[%emt 0:00:21]} 46. Ke4 {[%emt 0:00:24]} f5+ {[%emt 0:00:47]} 47. Ke5 {[%emt 0:00:25]} f4 {[%emt 0:01:06]} 48. Ke6 {[%emt 0:00:25]} f3 {[%emt 0:00:32]} 49. Kf7 {[%emt 0:00:22]} f2 {[%emt 0:00:42]} 50. Kxg7 {[%emt 0:00:21]} f1=Q {[%emt 0:00:28]} 51. Kh7 {[%emt 0:00:22]} Qf6 {[%emt 0:00:35]} 52. g7 {[%emt 0:00:26]} Qf7 {[%emt 0:00:36]} 53. Kh8 {[%emt 0:00:25]} Kxh5 {[%emt 0:00:31]} 54. g8=Q {[%emt 0:00:25]} Qxg8+ {[%emt 0:00:22]} 55. Kxg8 {[%emt 0:00:22]} Kg5 {[%emt 0:00:22]} 56. Kf7 {[%emt 0:00:24]} h5 {[%emt 0:00:22]} 57. Ke6 {[%emt 0:00:22]} h4 {[%emt 0:00:25]} 58. Ke5 {[%emt 0:00:21]} h3 {[%emt 0:00:23]} 59. Ke4 {[%emt 0:00:22]} h2 {[%emt 0:00:22]} 60. Kf3 {[%emt 0:00:22]} h1=Q+ {[%emt 0:00:23]} 61. Kg3 {[%emt 0:00:23]} Qe4 {[%emt 0:00:24]} 62. Kh3 {[%emt 0:00:24]} Qg4+ {[%emt 0:00:38]} 63. Kh2 {[%emt 0:00:22]} Kf4 {[%emt 0:00:24]} 64. Kh1 {[%emt 0:00:22]} Kf3 {[%emt 0:00:23]} 65. Kh2 {[%emt 0:00:22]} Qg2# {[%emt 0:00:21]} 0-1

[Event "Balkan Youth Online-ch 2020"]
[Site "Online"]
[Date "2020.10.31"]
[Round "3.72"]
[White "Ciftci, Zeynep"]
[Black "Shuqja, Klean"]
[Result "0-1"]
[ECO "A31"]
[WhiteElo "1603"]
[BlackElo "1838"]
[Annotator "NA RC"]
[PlyCount "106"]
[EventDate "2020.10.31"]
[EventType "swiss"]
[SourceTitle "playchess.com"]
[Source "ChessBase"]
[SourceQuality "1"]
[TimeControl "1500+5"]

1. Nf3 {[%emt 0:00:00]} Nf6 {[%emt 0:00:00]} 2. c4 {[%emt 0:00:00]} c5 {[%emt 0:00:00]} 3. d4 {[%emt 0:00:00]} cxd4 {[%emt 0:00:46]} 4. Nxd4 {[%emt 0:00:00]} b6 {[%emt 0:00:38]} 5. Nc3 {[%emt 0:00:21]} Bb7 {[%emt 0:00:38]} 6. f3 {[%emt 0:00:03]} e6 {[%emt 0:00:37]} 7. Nc2 {[%emt 0:01:27] A31: Symmetrical English: 2 Nf3 Nf6 3 d4.} Be7 {[%emt 0:03:11]} 8. e4 {[%emt 0:00:03]} d6 {[%emt 0:00:04]} 9. Be2 {[%emt 0:00:01]} a6 {[%emt 0:00:08]} 10. Be3 {[%emt 0:00:00]} O-O {[%emt 0:00:09]} 11. O-O {[%emt 0:00:00]} Nbd7 {[%emt 0:00:09]} 12. Qe1 {[%emt 0:02:11]} Qc7 {[%emt 0:00:46]} 13. Qf2 {[%emt 0:00:15] [#]} Rfd8 $146 {[%emt 0:02:10]} ({Predecessor:} 13... Rfe8 14. Rac1 Rac8 15. Rfd1 Ba8 16. g4 g6 17. g5 Nh5 18. f4 Ng7 19. h4 Nc5 {0-1 (48) Weiss,O (2196)-Kluss,K (2169) Baden 2010}) 14. Rac1 {[%emt 0:02:40]} Bf8 {[%emt 0:02:43]} 15. b4 {[%emt 0:00:16]} (15. g4 $16) 15... Rab8 {[%emt 0:02:24]} 16. Rfd1 {[%emt 0:03:42]} Ba8 {[%emt 0:00:55]} 17. g4 {[%emt 0:03:10]} (17. Nd4 $14) 17... Ne5 {[%emt 0:03:56]} 18. Na3 {[%emt 0:01:55]} Qb7 {[%emt 0:01:41]} 19. g5 {[%emt 0:02:27]} Nfd7 {[%emt 0:00:42]} 20. f4 {[%emt 0:00:03]} Nc6 {[%emt 0:00:43]} 21. b5 $14 {[%emt 0:02:24]} Na7 {[%emt 0:02:07]} 22. bxa6 {[%emt 0:01:28]} Qxa6 {[%emt 0:00:08]} 23. Nab5 {[%emt 0:00:03]} Nxb5 {[%emt 0:00:31]} 24. cxb5 {[%emt 0:00:47]} Qb7 {[%emt 0:00:14]} 25. Bf3 {[%emt 0:00:02]} Nc5 {[%emt 0:00:04]} 26. Kg2 {[%emt 0:00:08]} Qa7 {[%emt 0:00:31]} 27. Rc2 {[%emt 0:00:44]} Rbc8 {[%emt 0:00:14]} 28. f5 {[%emt 0:00:57]} Qd7 {[%emt 0:00:38]} 29. Bxc5 {[%emt 0:00:05]} Rxc5 {[%emt 0:00:01]} 30. fxe6 {[%emt 0:01:05]} fxe6 {[%emt 0:00:04]} 31. h4 {[%emt 0:00:00]} Rdc8 {[%emt 0:00:10]} 32. Rdc1 {[%emt 0:00:05]} Qc7 {[%emt 0:00:17]} 33. Qe3 {[%emt 0:00:58]} g6 {[%emt 0:00:08]} 34. Bd1 {[%emt 0:00:03]} Rc4 {[%emt 0:00:09]} 35. Kf2 {[%emt 0:00:16]} Bg7 {[%emt 0:00:00]} 36. Ne2 {[%emt 0:00:04]} Qf7+ {[%emt 0:00:10]} 37. Ke1 {[%emt 0:00:03]} Rxc2 {[%emt 0:00:05]} 38. Rxc2 {[%emt 0:00:00]} Rf8 {[%emt 0:00:04]} 39. Qxb6 {[%emt 0:00:00]} Qf1+ {[%emt 0:00:00]} 40. Kd2 {[%emt 0:00:00]} Bxe4 {[%emt 0:00:04]} 41. Qxd6 {[%emt 0:00:00]} Bxc2 {[%emt 0:00:00]} 42. Qxe6+ {[%emt 0:00:00]} Kh8 {[%emt 0:00:18]} 43. Bxc2 {[%emt 0:00:00]} Rd8+ {[%emt 0:00:00]} 44. Ke3 {[%emt 0:00:00]} Qf8 {[%emt 0:00:04]} 45. Qb3 {[%emt 0:00:00]} Qc5+ {[%emt 0:00:06]} 46. Kf3 {[%emt 0:00:01]} Rf8+ {[%emt 0:00:00]} 47. Nf4 {[%emt 0:00:03]} Be5 {[%emt 0:00:03]} 48. Kg2 {[%emt 0:00:12]} Bxf4 {[%emt 0:00:00]} 49. b6 {[%emt 0:00:00]} Qc6+ {[%emt 0:00:01]} 50. Kg1 {[%emt 0:00:00]} Be5 {[%emt 0:00:11]} 51. b7 {[%emt 0:00:00]} Bd4+ {[%emt 0:00:01]} 52. Kh2 {[%emt 0:00:00]} Rf2+ {[%emt 0:00:00]} 53. Kh3 {[%emt 0:00:00]} Qg2# {[%emt 0:00:00]} 0-1

[Event "Balkan Youth Online-ch 2020"]
[Site "Online"]
[Date "2020.10.31"]
[Round "3.73"]
[White "Mosurovic, Milena"]
[Black "Kipik, Feyza"]
[Result "0-1"]
[ECO "B26"]
[WhiteElo "1428"]
[BlackElo "1592"]
[Annotator "NA RC"]
[PlyCount "78"]
[EventDate "2020.10.31"]
[EventType "swiss"]
[SourceTitle "playchess.com"]
[Source "ChessBase"]
[SourceQuality "1"]
[TimeControl "5400+30"]

1. e4 {[%emt 1:05:20]} c5 {[%emt 1:05:29]} 2. Nc3 {[%emt 0:00:24]} Nc6 {[%emt 0:00:24]} 3. g3 {[%emt 0:00:25]} g6 {[%emt 0:00:22]} 4. Bg2 {[%emt 0:00:23]} Bg7 {[%emt 0:00:22]} 5. d3 {[%emt 0:00:22]} d6 {[%emt 0:00:23]} 6. Be3 {[%emt 0:00:23]} e5 {[%emt 0:00:26]} 7. f4 {[%emt 0:00:25]} Nf6 {[%emt 0:01:05]} 8. Nge2 {[%emt 0:00:45]} O-O {[%emt 0:01:12]} 9. h3 {[%emt 0:00:26]} Nd4 {[%emt 0:00:32]} 10. O-O {[%emt 0:00:29]} Be6 {[%emt 0:02:09]} 11. Qd2 {[%emt 0:01:29]} b5 {[%emt 0:04:11]} 12. Nd1 {[%emt 0:03:24]} Nxe2+ {[%emt 0:03:10]} 13. Qxe2 {[%emt 0:00:30]} Nh5 {[%emt 0:00:28]} 14. Rf3 {[%emt 0:01:53]} Rb8 {[%emt 0:01:28]} 15. g4 {[%emt 0:00:32]} Nxf4 {[%emt 0:00:40]} 16. Bxf4 {[%emt 0:00:22]} exf4 {[%emt 0:00:22]} 17. Rxf4 {[%emt 0:00:22]} d5 {[%emt 0:01:15]} 18. c3 {[%emt 0:02:20]} d4 {[%emt 0:02:12]} 19. e5 {[%emt 0:01:03]} Qc7 {[%emt 0:02:36]} 20. cxd4 {[%emt 0:00:58]} cxd4 {[%emt 0:00:23]} 21. Rxd4 {[%emt 0:00:34]} Qc5 {[%emt 0:01:09]} 22. Qe3 {[%emt 0:00:52]} Bxe5 {[%emt 0:00:29]} 23. Re4 {[%emt 0:00:35]} Qxe3+ {[%emt 0:00:30]} 24. Nxe3 {[%emt 0:00:34]} Bxb2 {[%emt 0:00:23]} 25. Rb1 {[%emt 0:00:25]} Bg7 {[%emt 0:00:34]} 26. a3 {[%emt 0:00:46]} Rfd8 {[%emt 0:00:36]} 27. Bf1 {[%emt 0:00:55]} a6 {[%emt 0:01:06]} 28. Kf2 {[%emt 0:00:55]} Rbc8 {[%emt 0:00:39]} 29. Nd1 {[%emt 0:00:56]} Bd4+ {[%emt 0:01:32]} 30. Kg3 {[%emt 0:00:49]} Ba2 {[%emt 0:00:46]} 31. Rb4 {[%emt 0:00:27]} Bc5 {[%emt 0:00:26]} 32. Rb2 {[%emt 0:00:27]} Bd5 {[%emt 0:00:24]} 33. Ree2 {[%emt 0:01:00]} Bxa3 {[%emt 0:00:33]} 34. Rb1 {[%emt 0:00:27]} b4 {[%emt 0:00:37]} 35. Ne3 {[%emt 0:00:29]} Be6 {[%emt 0:00:37]} 36. Rf2 {[%emt 0:00:47]} Rc1 {[%emt 0:00:59]} 37. Rxc1 {[%emt 0:00:33]} Bxc1 {[%emt 0:00:23]} 38. Nc4 {[%emt 0:00:26]} Bxc4 {[%emt 0:00:53]} 39. dxc4 {[%emt 0:00:24]} b3 {[%emt 0:00:25]} 0-1

[Event "Balkan Youth Online-ch 2020"]
[Site "Online"]
[Date "2020.10.31"]
[Round "3.73"]
[White "Baklova, Mila"]
[Black "Vaupot, Eliza"]
[Result "1-0"]
[ECO "B43"]
[WhiteElo "1226"]
[BlackElo "1198"]
[Annotator "NA RC"]
[PlyCount "57"]
[EventDate "2020.10.31"]
[EventType "swiss"]
[SourceTitle "playchess.com"]
[Source "ChessBase"]
[SourceQuality "1"]
[TimeControl "5400+30"]

1. e4 {[%emt 1:05:20]} c5 {[%emt 1:05:23]} 2. Nf3 {[%emt 0:00:25]} e6 {[%emt 0:00:23]} 3. d4 {[%emt 0:00:25]} cxd4 {[%emt 0:00:24]} 4. Nxd4 {[%emt 0:00:27]} a6 {[%emt 0:00:25]} 5. Nc3 {[%emt 0:00:28]} Qc7 {[%emt 0:00:29]} 6. Be3 {[%emt 0:00:52]} Bb4 {[%emt 0:00:34]} 7. Qd3 {[%emt 0:00:59]} Nf6 {[%emt 0:00:58]} 8. f3 {[%emt 0:00:53]} Nc6 {[%emt 0:00:39]} 9. Be2 {[%emt 0:01:00]} O-O {[%emt 0:00:40]} 10. O-O {[%emt 0:00:35]} h6 {[%emt 0:02:40]} 11. a3 {[%emt 0:00:56]} Bd6 {[%emt 0:01:34]} 12. f4 {[%emt 0:00:39]} Nxd4 {[%emt 0:03:52]} 13. Qxd4 {[%emt 0:02:25]} e5 {[%emt 0:01:40]} 14. Qd2 {[%emt 0:00:44]} exf4 {[%emt 0:01:10]} 15. Bxf4 {[%emt 0:00:41]} Bxf4 {[%emt 0:00:45]} 16. Rxf4 {[%emt 0:00:32]} Re8 {[%emt 0:00:59]} 17. Bd3 {[%emt 0:00:44]} b5 {[%emt 0:01:28]} 18. Raf1 {[%emt 0:01:07]} Bb7 {[%emt 0:01:08]} 19. Qe3 {[%emt 0:01:10]} Qd6 {[%emt 0:03:05]} 20. Ne2 {[%emt 0:02:58]} Re6 {[%emt 0:02:01]} 21. Nd4 {[%emt 0:00:42]} g5 {[%emt 0:04:40]} 22. Nxe6 {[%emt 0:00:56]} gxf4 {[%emt 0:01:04]} 23. Nxf4 {[%emt 0:00:24]} Re8 {[%emt 0:00:55]} 24. Qg3+ {[%emt 0:00:29]} Kh7 {[%emt 0:02:03]} 25. e5+ {[%emt 0:00:23]} Qxd3 {[%emt 0:00:33]} 26. cxd3 {[%emt 0:00:33]} Rxe5 {[%emt 0:00:33]} 27. d4 {[%emt 0:01:00]} Rg5 {[%emt 0:00:27]} 28. Qe3 {[%emt 0:01:35]} Nh5 {[%emt 0:00:44]} 29. g3 {[%emt 0:01:33]} 1-0

[Event "Balkan Youth Online-ch 2020"]
[Site "Online"]
[Date "2020.10.31"]
[Round "3.74"]
[White "Paroglou, Marianna"]
[Black "Mihelic, Vesna"]
[Result "0-1"]
[ECO "C50"]
[WhiteElo "1436"]
[BlackElo "1872"]
[Annotator "NA RC"]
[PlyCount "110"]
[EventDate "2020.10.31"]
[EventType "swiss"]
[SourceTitle "playchess.com"]
[Source "ChessBase"]
[SourceQuality "1"]
[TimeControl "1500+5"]

1. e4 {[%emt 0:00:00]} e5 {[%emt 0:00:00]} 2. Nf3 {[%emt 0:00:00]} Nc6 {[%emt 0:00:00]} 3. Bc4 {[%emt 0:00:00]} Bc5 {[%emt 0:00:00]} 4. O-O {[%emt 0:00:00]} Nf6 {[%emt 0:00:00]} 5. d4 {[%emt 0:00:04]} Bxd4 {[%emt 0:00:00]} 6. Nxd4 {[%emt 0:00:00]} Nxd4 {[%emt 0:00:00]} 7. f4 {[%emt 0:00:00]} d6 {[%emt 0:00:00]} 8. fxe5 {[%emt 0:00:00]} dxe5 {[%emt 0:00:00]} 9. Bg5 {[%emt 0:01:19]} Qe7 {[%emt 0:00:24]} 10. Na3 {[%emt 0:03:20] C50: Hungarian Defence and Giuoco Pianissimo.} Be6 {[%emt 0:01:50]} 11. c3 {[%emt 0:01:28]} Bxc4 {[%emt 0:02:13]} 12. Bxf6 {[%emt 0:00:32]} gxf6 {[%emt 0:01:00]} 13. Nxc4 {[%emt 0:00:03]} Ne6 {[%emt 0:00:11]} 14. Qa4+ {[%emt 0:00:35] [#]} Kf8 $146 {[%emt 0:03:17]} ({Predecessor:} 14... c6 15. Qa5 O-O 16. Ne3 Kh8 17. Nf5 Qd8 18. Qa3 Qb6+ 19. Kh1 Qc5 20. Qb3 b5 {1-0 (35) Jovanovic,Z (2525)-Borisek,J (2581) Rogaska Slatina 2009}) 15. b4 {[%emt 0:00:51]} Kg7 {[%emt 0:00:19]} (15... Rg8 $11 {remains equal.}) 16. Ne3 {[%emt 0:00:46]} Qe8 {[%emt 0:02:43]} 17. Qxe8 {[%emt 0:07:35]} Raxe8 {[%emt 0:00:08]} 18. Nd5 {[%emt 0:00:48]} Nf4 {[%emt 0:01:22]} 19. Nxf4 {[%emt 0:01:09]} exf4 {[%emt 0:00:00]} 20. Rxf4 {[%emt 0:00:20]} Re6 {[%emt 0:00:20]} 21. Kf2 {[%emt 0:03:03]} Rhe8 {[%emt 0:00:58]} 22. Rd1 {[%emt 0:02:30]} Rxe4 {[%emt 0:00:36]} 23. Rxe4 {[%emt 0:00:39]} Rxe4 {[%emt 0:00:00]} 24. Rd3 {[%emt 0:00:35]} Rc4 {[%emt 0:01:30]} 25. Ke2 {[%emt 0:00:35]} Kf8 {[%emt 0:00:02]} 26. Kd2 {[%emt 0:00:02]} Ke7 {[%emt 0:00:01]} 27. Rh3 {[%emt 0:00:04]} Rg4 {[%emt 0:00:08]} 28. g3 {[%emt 0:00:36]} Rg7 {[%emt 0:00:05]} 29. Rh4 {[%emt 0:00:00]} f5 {[%emt 0:00:15]} 30. Ke3 {[%emt 0:00:17]} Ke6 {[%emt 0:00:37]} 31. a4 {[%emt 0:00:06]} Ke5 {[%emt 0:00:19]} 32. Rc4 {[%emt 0:00:04]} c6 {[%emt 0:00:11]} 33. Rc5+ {[%emt 0:00:00]} Ke6 {[%emt 0:00:00]} 34. Kf3 {[%emt 0:00:12]} f6 {[%emt 0:00:03]} 35. h3 {[%emt 0:00:01]} Rd7 {[%emt 0:00:04]} 36. Kf4 {[%emt 0:00:05]} Rd1 {[%emt 0:00:03]} 37. Ke3 {[%emt 0:00:08]} Re1+ {[%emt 0:00:52]} 38. Kf3 {[%emt 0:00:04]} Rf1+ {[%emt 0:00:04]} 39. Ke2 {[%emt 0:00:06]} Rh1 {[%emt 0:00:24]} 40. h4 {[%emt 0:00:00]} f4 {[%emt 0:01:48]} 41. gxf4 {[%emt 0:00:13]} Rxh4 {[%emt 0:00:00]} 42. Kf3 {[%emt 0:00:01]} Rh1 {[%emt 0:00:02]} 43. Kg2 {[%emt 0:00:05]} Rd1 {[%emt 0:00:36]} 44. Kf3 {[%emt 0:00:07]} Rd5 {[%emt 0:00:25]} 45. Rc4 {[%emt 0:00:08]} Kf5 {[%emt 0:00:01]} 46. Re4 {[%emt 0:00:03]} Rd3+ {[%emt 0:00:01]} 47. Re3 {[%emt 0:00:00]} Rxe3+ {[%emt 0:00:08]} 48. Kxe3 {[%emt 0:00:00]} Kg4 $19 {[%emt 0:00:42]} 49. c4 {[%emt 0:00:00]} h5 {[%emt 0:00:00]} 50. c5 {[%emt 0:00:00]} h4 {[%emt 0:00:01]} 51. b5 {[%emt 0:00:00]} h3 {[%emt 0:00:10]} 52. a5 {[%emt 0:00:00]} h2 {[%emt 0:00:02]} 53. a6 {[%emt 0:00:00]} bxa6 {[%emt 0:00:09]} 54. bxc6 {[%emt 0:00:00]} h1=Q {[%emt 0:00:00]} 55. c7 {[%emt 0:00:00]} Qc6 {[%emt 0:00:00]} 0-1

[Event "Balkan Youth Online-ch 2020"]
[Site "Online"]
[Date "2020.10.31"]
[Round "3.75"]
[White "Jovanovic, Anja"]
[Black "Spiridon, Anisia"]
[Result "0-1"]
[ECO "C12"]
[WhiteElo "1778"]
[BlackElo "1551"]
[Annotator "NA RC"]
[PlyCount "96"]
[EventDate "2020.10.31"]
[EventType "swiss"]
[SourceTitle "playchess.com"]
[Source "ChessBase"]
[SourceQuality "1"]
[TimeControl "1500+5"]

1. e4 {[%emt 0:00:00]} e6 {[%emt 0:00:00]} 2. d4 {[%emt 0:00:00]} d5 {[%emt 0:00:00]} 3. Nc3 {[%emt 0:00:00]} Nf6 {[%emt 0:00:00]} 4. Bg5 {[%emt 0:00:00]} Bb4 {[%emt 0:00:00]} 5. e5 {[%emt 0:00:01]} h6 {[%emt 0:00:00]} 6. Bd2 {[%emt 0:00:30]} Bxc3 {[%emt 0:00:00]} 7. bxc3 {[%emt 0:00:04]} Ne4 {[%emt 0:00:00]} 8. Bd3 {[%emt 0:00:03]} Nxd2 {[%emt 0:01:53]} 9. Qxd2 {[%emt 0:00:02]} c5 {[%emt 0:00:00]} 10. Nf3 {[%emt 0:01:03]} c4 {[%emt 0:01:39]} 11. Be2 {[%emt 0:00:00]} b5 {[%emt 0:00:05]} 12. O-O {[%emt 0:00:32]} Bd7 {[%emt 0:00:33]} 13. h3 {[%emt 0:01:49]} a5 {[%emt 0:01:18]} 14. a3 {[%emt 0:00:22]} Na6 {[%emt 0:00:27]} 15. Nh2 {[%emt 0:01:23]} Qe7 {[%emt 0:00:32]} 16. Ng4 {[%emt 0:00:26]} O-O {[%emt 0:01:05]} 17. Rfb1 {[%emt 0:01:03]} Rfb8 {[%emt 0:00:29]} 18. Bf1 {[%emt 0:01:55]} Bc6 {[%emt 0:00:30]} 19. Ne3 {[%emt 0:03:02]} Qg5 {[%emt 0:02:01]} 20. Kh1 {[%emt 0:01:57]} Rb7 {[%emt 0:01:08]} 21. Ra2 {[%emt 0:01:09]} Rab8 {[%emt 0:00:43]} 22. Rab2 {[%emt 0:00:02]} Qe7 {[%emt 0:00:03]} 23. Ra2 {[%emt 0:00:46]} Nc7 {[%emt 0:00:41]} 24. Kh2 {[%emt 0:01:42]} Qg5 {[%emt 0:00:41]} 25. Rab2 {[%emt 0:00:28]} Na8 {[%emt 0:00:06]} 26. Qe1 {[%emt 0:00:50]} Nb6 {[%emt 0:01:08]} 27. Qd2 {[%emt 0:00:29]} Na4 {[%emt 0:00:14]} 28. Ra2 {[%emt 0:00:00]} f6 {[%emt 0:01:20]} 29. exf6 {[%emt 0:00:16]} gxf6 {[%emt 0:01:02]} 30. Kg1 {[%emt 0:00:54]} h5 {[%emt 0:02:00]} 31. Qe1 {[%emt 0:00:07]} e5 {[%emt 0:01:00]} 32. Be2 {[%emt 0:01:36]} Rg7 {[%emt 0:02:41]} 33. g3 {[%emt 0:02:18]} f5 {[%emt 0:01:47]} 34. dxe5 {[%emt 0:00:52]} f4 {[%emt 0:00:00]} 35. h4 {[%emt 0:00:10]} Qxe5 {[%emt 0:00:06]} 36. Ng2 {[%emt 0:00:27]} fxg3 {[%emt 0:00:18]} 37. fxg3 {[%emt 0:00:00]} Nxc3 {[%emt 0:00:17]} 38. Bxh5 {[%emt 0:00:29]} Qxe1+ {[%emt 0:00:16]} 39. Rxe1 {[%emt 0:00:01]} Nxa2 {[%emt 0:00:01]} 40. Re6 {[%emt 0:00:20]} Bd7 {[%emt 0:00:03]} 41. Rd6 {[%emt 0:00:00]} Nc3 {[%emt 0:00:06]} 42. Kh2 {[%emt 0:00:00]} b4 {[%emt 0:00:27]} 43. axb4 {[%emt 0:00:03]} axb4 {[%emt 0:00:00]} 44. Ne3 {[%emt 0:00:23]} Ne4 {[%emt 0:00:54]} 45. Rxd5 {[%emt 0:00:00]} Nf6 {[%emt 0:00:00]} 46. Rc5 {[%emt 0:00:03]} Nxh5 {[%emt 0:00:03]} 47. Rxh5 {[%emt 0:00:00]} b3 {[%emt 0:00:00]} 48. Nxc4 {[%emt 0:00:00]} bxc2 {[%emt 0:00:00]} 0-1

[Event "Balkan Youth Online-ch 2020"]
[Site "Online"]
[Date "2020.10.31"]
[Round "3.78"]
[White "Chicarosie, Ioana-Bianca"]
[Black "Tsakona, Maria"]
[Result "0-1"]
[ECO "D05"]
[WhiteElo "1521"]
[BlackElo "1596"]
[Annotator "NA RC"]
[PlyCount "58"]
[EventDate "2020.10.31"]
[EventType "swiss"]
[SourceTitle "playchess.com"]
[Source "ChessBase"]
[SourceQuality "1"]
[TimeControl "5400+30"]

1. d4 {[%emt 1:05:20]} Nf6 {[%emt 1:05:26]} 2. Nf3 {[%emt 0:00:26]} e6 {[%emt 0:00:24]} 3. Nbd2 {[%emt 0:00:23]} d5 {[%emt 0:00:29]} 4. e3 {[%emt 0:00:24]} b6 {[%emt 0:01:20]} 5. Bd3 {[%emt 0:00:28]} Bb7 {[%emt 0:00:23]} 6. O-O {[%emt 0:00:40]} Bd6 {[%emt 0:01:00]} 7. Qe2 {[%emt 0:00:37]} Ne4 {[%emt 0:00:34]} 8. c4 {[%emt 0:00:48]} O-O {[%emt 0:00:33]} 9. Ne5 {[%emt 0:01:34]} f6 {[%emt 0:02:49]} 10. Nef3 {[%emt 0:00:41]} Nd7 {[%emt 0:00:50]} 11. b3 {[%emt 0:00:44]} f5 {[%emt 0:00:46]} 12. Bb2 {[%emt 0:00:36]} Nxd2 {[%emt 0:05:16]} 13. Qxd2 {[%emt 0:00:25]} dxc4 {[%emt 0:03:02]} 14. Bxc4 {[%emt 0:01:01]} Bxf3 {[%emt 0:00:59]} 15. Bxe6+ {[%emt 0:02:23]} Kh8 {[%emt 0:00:25]} 16. gxf3 {[%emt 0:03:29]} Rf6 {[%emt 0:00:37]} 17. f4 {[%emt 0:02:17]} Rxe6 {[%emt 0:00:33]} 18. Kh1 {[%emt 0:00:30]} Qh4 {[%emt 0:00:58]} 19. Rg1 {[%emt 0:00:38]} Rae8 {[%emt 0:01:34]} 20. d5 {[%emt 0:00:40]} Rg6 {[%emt 0:00:22]} 21. Rxg6 {[%emt 0:00:42]} hxg6 {[%emt 0:00:22]} 22. Rg1 {[%emt 0:00:27]} Kh7 {[%emt 0:00:43]} 23. f3 {[%emt 0:01:21]} Bc5 {[%emt 0:00:32]} 24. Bd4 {[%emt 0:01:20]} Bxd4 {[%emt 0:01:03]} 25. Qxd4 {[%emt 0:00:54]} Qf2 {[%emt 0:00:25]} 26. Qd1 {[%emt 0:01:12]} Rxe3 {[%emt 0:00:27]} 27. Rf1 {[%emt 0:00:33]} Qxa2 {[%emt 0:00:56]} 28. b4 {[%emt 0:00:53]} Re2 {[%emt 0:00:29]} 29. Re1 {[%emt 0:00:55]} Rxh2+ {[%emt 0:00:24]} 0-1

[Event "Balkan Youth Online-ch 2020"]
[Site "Online"]
[Date "2020.10.31"]
[Round "3.85"]
[White "Popovic, Mateja"]
[Black "Karavitaki, Evaggelia"]
[Result "1/2-1/2"]
[ECO "A46"]
[WhiteElo "1592"]
[BlackElo "1725"]
[Annotator "NA RC"]
[PlyCount "63"]
[EventDate "2020.10.31"]
[EventType "swiss"]
[SourceTitle "playchess.com"]
[Source "ChessBase"]
[SourceQuality "1"]
[TimeControl "5400+30"]

1. d4 {[%emt 1:05:20]} Nf6 {[%emt 1:05:29]} 2. Nf3 {[%emt 0:00:28]} e6 {[%emt 0:00:41]} 3. Bg5 {[%emt 0:00:26]} c5 {[%emt 0:00:30]} 4. c3 {[%emt 0:00:48]} Qb6 {[%emt 0:00:56]} 5. Qb3 {[%emt 0:00:26]} Qxb3 {[%emt 0:00:53]} 6. axb3 {[%emt 0:00:24]} Ne4 {[%emt 0:00:33]} 7. Bf4 {[%emt 0:00:37]} Nc6 {[%emt 0:00:27]} 8. e3 {[%emt 0:00:29]} Be7 {[%emt 0:00:38]} 9. Bd3 {[%emt 0:00:26]} Nf6 {[%emt 0:00:26]} 10. Nbd2 {[%emt 0:00:26]} d5 {[%emt 0:00:31]} 11. h3 {[%emt 0:00:26]} O-O {[%emt 0:00:27]} 12. O-O {[%emt 0:00:24]} h6 {[%emt 0:00:24]} 13. c4 {[%emt 0:00:28]} Rd8 {[%emt 0:00:50]} 14. cxd5 {[%emt 0:00:46]} Nxd5 {[%emt 0:00:29]} 15. Bg3 {[%emt 0:00:43]} cxd4 {[%emt 0:00:39]} 16. exd4 {[%emt 0:00:39]} Ndb4 {[%emt 0:00:27]} 17. Bc4 {[%emt 0:01:23]} Nxd4 {[%emt 0:00:36]} 18. Nxd4 {[%emt 0:00:24]} Rxd4 {[%emt 0:00:23]} 19. Nf3 {[%emt 0:00:22]} Rd8 {[%emt 0:01:35]} 20. Rfd1 {[%emt 0:00:56]} Nd5 {[%emt 0:00:41]} 21. Bxd5 {[%emt 0:00:45]} exd5 {[%emt 0:00:34]} 22. Rac1 {[%emt 0:00:25]} Bf6 {[%emt 0:00:26]} 23. Rd2 {[%emt 0:00:40]} Be6 {[%emt 0:00:40]} 24. Rc7 {[%emt 0:00:35]} b6 {[%emt 0:00:23]} 25. Be5 {[%emt 0:00:38]} Bxe5 {[%emt 0:01:16]} 26. Nxe5 {[%emt 0:00:24]} Rdc8 {[%emt 0:00:28]} 27. Re7 {[%emt 0:00:32]} Kf8 {[%emt 0:00:47]} 28. Ng6+ {[%emt 0:00:23]} Kg8 {[%emt 0:01:09]} 29. Nf4 {[%emt 0:00:27]} Kf8 {[%emt 0:00:29]} 30. Ng6+ {[%emt 0:00:23]} Kg8 {[%emt 0:00:28]} 31. Nf4 {[%emt 0:00:22]} Kf8 {[%emt 0:00:23]} 32. Ng6+ {[%emt 0:00:43]} 1/2-1/2